bitfinex-derivatives/quotes_BTCF0:USTF0_20250805
["timestamp","ask_amount","ask_price","bid_price","bid_amount"]
[1754359130060,0.9026907,114780.0,114770.0,0.87306655]
[1754359130263,1.4441737,114780.0,114770.0,1.04733215]
[1754359130459,1.4441737,114780.0,114770.0,1.04633215]
[1754359133156,1.0833737,114780.0,114770.0,1.04633215]
[1754359133358,1.4441737,114780.0,114770.0,1.04633215]
[1754359135064,1.4441737,114780.0,114770.0,0.93662971]
[1754359136961,1.0833737,114780.0,114770.0,0.93662971]
[1754359137163,1.4441737,114780.0,114770.0,0.93662971]
[1754359138465,0.9026907,114780.0,114770.0,0.93662971]
[1754359138666,1.4441737,114780.0,114770.0,0.93662971]
[1754359140069,0.9026907,114780.0,114770.0,0.93662971]
[1754359140263,1.4441737,114780.0,114770.0,0.93662971]
[1754359143770,0.9026907,114780.0,114770.0,0.93662971]
[1754359144070,1.4441737,114780.0,114770.0,0.93662971]
[1754359146671,1.4441737,114780.0,114770.0,1.04647834]
[1754359147271,1.4441737,114780.0,114770.0,0.93662971]
[1754359148573,1.4441737,114780.0,114770.0,1.04648319]
[1754359151373,1.4441737,114780.0,114770.0,0.93662971]
[1754359151773,1.4441737,114780.0,114770.0,1.04648396]
[1754359153076,0.9026907,114780.0,114770.0,1.04648396]
[1754359153275,1.4441737,114780.0,114770.0,1.04648396]
[1754359154970,1.4441737,114780.0,114770.0,0.93662971]
[1754359161787,0.9026907,114780.0,114770.0,0.93662971]
[1754359161986,1.4441737,114780.0,114770.0,0.93662971]
[1754359164286,1.4441737,114780.0,114770.0,1.04649056]
[1754359165087,1.4441737,114780.0,114770.0,0.93662971]
[1754359166385,0.9026907,114780.0,114770.0,0.93662971]
[1754359166585,1.4441737,114780.0,114770.0,0.93662971]
[1754359173790,0.9026907,114780.0,114770.0,0.93662971]
[1754359173989,1.4441737,114780.0,114770.0,0.93662971]
[1754359175086,1.4441737,114780.0,114770.0,1.04649056]
[1754359175287,1.4441737,114780.0,114770.0,0.10986085]
[1754359175488,1.4441737,114780.0,114770.0,0.59824]
[1754359175689,1.9441737,114780.0,114770.0,0.59824]
[1754359176092,1.4026907,114780.0,114770.0,0.59824]
[1754359176292,1.9441737,114780.0,114770.0,0.59824]
[1754359176493,1.9441737,114780.0,114770.0,0.8150155]
[1754359176693,1.9451737,114780.0,114770.0,0.2620255]
[1754359176897,1.9451737,114780.0,114770.0,0.8602255]
[1754359177282,1.4036907,114780.0,114770.0,0.8602255]
[1754359177486,1.9451737,114780.0,114770.0,0.8602255]
[1754359177989,1.9451737,114780.0,114770.0,1.24081239]
[1754359177990,1.9461737,114780.0,114770.0,1.24081239]
[1754359178493,1.9461737,114780.0,114770.0,1.24947356]
[1754359180694,1.6754322,114780.0,114770.0,1.24947356]
[1754359182595,1.4046907,114780.0,114770.0,1.24947356]
[1754359182795,1.6754322,114780.0,114770.0,1.24947356]
[1754359184397,1.4046907,114780.0,114770.0,1.24947356]
[1754359184697,1.6754322,114780.0,114770.0,0.97873206]
[1754359184894,1.4046907,114780.0,114770.0,1.24947356]
[1754359185096,1.6754322,114780.0,114770.0,1.24947356]
[1754359186892,1.0438907,114780.0,114770.0,1.24947356]
[1754359187494,1.3146322,114780.0,114770.0,1.24947356]
[1754359191498,1.3146322,114780.0,114770.0,0.97873206]
[1754359191702,1.3146322,114780.0,114770.0,1.24947356]
[1754359192311,1.3146322,114780.0,114770.0,0.97873206]
[1754359192510,1.3146322,114780.0,114770.0,1.24947356]
[1754359194311,1.3146322,114780.0,114770.0,0.97873206]
[1754359194512,1.3146322,114780.0,114770.0,1.24947356]
[1754359196210,1.3146322,114780.0,114770.0,0.97873206]
[1754359196413,1.3146322,114780.0,114770.0,1.13962817]
[1754359198417,1.3146322,114780.0,114770.0,0.86888667]
[1754359198714,1.3146322,114780.0,114770.0,1.13962817]
[1754359198915,0.7515,114780.0,114770.0,2.03596967]
[1754359199909,0.2515,114780.0,114770.0,2.03596967]
[1754359201411,0.4257519,114780.0,114770.0,1.49448667]
[1754359201713,0.4257519,114780.0,114770.0,2.14572017]
[1754359202308,0.2515,114780.0,114770.0,2.14572017]
[1754359204319,0.2515,114780.0,114770.0,2.30671117]
[1754359204617,0.19105,114780.0,114770.0,2.48096717]
[1754359205221,0.19105,114780.0,114770.0,2.68398072]
[1754359206217,0.19005,114780.0,114770.0,2.84054593]
[1754359206409,0.19005,114780.0,114770.0,2.63753238]
[1754359206611,0.15135391,114780.0,114770.0,2.63753238]
[1754359206806,0.15035391,114780.0,114770.0,2.63753238]
[1754359207018,0.02168,114800.0,114790.0,0.1768257]
[1754359207216,0.02168,114800.0,114790.0,1.7864985]
[1754359207615,0.02168,114800.0,114790.0,1.6769487]
[1754359209719,0.02268,114800.0,114790.0,1.6769487]
[1754359209920,0.02368,114800.0,114790.0,1.6769487]
[1754359210520,0.02368,114800.0,114790.0,1.9417487]
[1754359211619,0.02368,114800.0,114790.0,1.5809487]
[1754359211819,0.02368,114800.0,114790.0,1.9417487]
[1754359214921,0.1979002,114800.0,114790.0,1.50965688]
[1754359215220,0.2933902,114800.0,114790.0,2.05113988]
[1754359215419,0.2933902,114800.0,114790.0,1.9417487]
[1754359215823,0.2933902,114800.0,114790.0,2.05113988]
[1754359216115,0.2933902,114800.0,114790.0,1.18155838]
[1754359216319,0.5641317,114800.0,114790.0,1.6698072]
[1754359216713,0.2933902,114800.0,114790.0,1.6698072]
[1754359216915,0.2933902,114800.0,114790.0,1.3090072]
[1754359217109,0.2933902,114800.0,114790.0,0.7113672]
[1754359217311,0.2933902,114800.0,114790.0,1.3090072]
[1754359218623,0.5641317,114800.0,114790.0,1.3090072]
[1754359218817,0.8348732,114800.0,114790.0,0.2648]
[1754359219118,1.1956732,114800.0,114790.0,0.2648]
[1754359219320,1.6956732,114800.0,114790.0,0.8624]
[1754359220020,1.6956732,114800.0,114770.0,0.78380465]
[1754359220021,0.2924205,114780.0,114770.0,0.94080347]
[1754359220218,0.563162,114780.0,114770.0,1.80914497]
[1754359220418,0.563162,114780.0,114770.0,1.76557897]
[1754359220623,0.563162,114780.0,114770.0,1.31764697]
[1754359221016,0.563162,114780.0,114770.0,0.54420267]
[1754359221222,0.563162,114780.0,114770.0,1.31606847]
[1754359221725,0.563162,114780.0,114770.0,1.31706847]
[1754359221925,0.563162,114780.0,114770.0,0.54620267]
[1754359222122,0.812662,114780.0,114770.0,1.14280267]
[1754359222321,0.813662,114780.0,114770.0,1.31706847]
[1754359222922,1.174462,114780.0,114770.0,1.14280267]
[1754359223224,1.174462,114780.0,114770.0,1.14439267]
[1754359223525,1.174462,114780.0,114770.0,1.31865847]
[1754359225225,0.813662,114780.0,114770.0,1.42804965]
[1754359225625,0.5429205,114780.0,114770.0,1.31865847]
[1754359226025,0.5439205,114780.0,114770.0,1.31765847]
[1754359227727,0.814662,114780.0,114770.0,0.87265117]
[1754359227924,0.5439205,114780.0,114770.0,1.31765847]
[1754359228227,0.814662,114780.0,114770.0,1.42717396]
[1754359228426,0.814662,114780.0,114770.0,1.25290816]
[1754359228625,0.814662,114780.0,114770.0,1.42717396]
[1754359229230,0.814662,114780.0,114770.0,1.25290816]
[1754359229527,0.814662,114780.0,114770.0,1.31765847]
[1754359230219,0.5439205,114780.0,114770.0,1.25291997]
[1754359230424,0.814662,114780.0,114770.0,1.25291997]
[1754359230625,0.814662,114780.0,114770.0,0.87265117]
[1754359230825,0.814662,114780.0,114770.0,1.31765827]
[1754359231931,0.814662,114780.0,114770.0,1.14180267]
[1754359232127,0.814662,114780.0,114770.0,0.98058847]
[1754359232334,0.814662,114780.0,114770.0,1.25132997]
[1754359233131,0.814662,114780.0,114770.0,1.42559567]
[1754359234134,0.5439205,114780.0,114770.0,1.42559567]
[1754359234532,0.814662,114780.0,114770.0,1.42559567]
[1754359236037,0.5439205,114780.0,114770.0,1.42559567]
[1754359236540,0.5439205,114780.0,114770.0,1.31606837]
[1754359236937,0.5439205,114780.0,114770.0,1.42559567]
[1754359237836,0.5439205,114780.0,114770.0,1.31606837]
[1754359238734,0.5439205,114780.0,114770.0,1.31706837]
[1754359238942,0.5439205,114780.0,114770.0,1.69733717]
[1754359239133,0.5301905,114780.0,114770.0,1.69733717]
[1754359239836,0.4970405,114780.0,114770.0,2.05813717]
[1754359240941,0.2515,114780.0,114770.0,2.05813717]
[1754359241144,0.4257504,114780.0,114770.0,2.05813717]
[1754359241535,0.4493504,114780.0,114770.0,2.05813717]
[1754359243938,0.4493504,114780.0,114770.0,1.94860987]
[1754359245040,0.4493504,114780.0,114770.0,1.58780987]
[1754359245241,0.4493504,114780.0,114770.0,1.94860987]
[1754359246643,0.4493504,114780.0,114770.0,2.10517508]
[1754359248345,0.4493504,114780.0,114770.0,1.94860987]
[1754359249446,0.4824004,114780.0,114770.0,1.94860987]
[1754359250546,0.2515,114780.0,114770.0,1.94860987]
[1754359250743,0.4493506,114780.0,114770.0,2.0583779]
[1754359251352,0.4824006,114780.0,114770.0,2.0583779]
[1754359251545,0.5442506,114780.0,114770.0,2.0583779]
[1754359252445,0.5442506,114780.0,114770.0,1.94860987]
[1754359253050,0.37,114780.0,114770.0,1.94860987]
[1754359253344,0.5442506,114780.0,114770.0,1.94860987]
[1754359259152,0.5442506,114780.0,114770.0,2.0583744]
[1754359259952,0.5442506,114780.0,114770.0,1.94860987]
[1754359260852,0.5442506,114780.0,114770.0,2.05837254]
[1754359261252,0.5442506,114780.0,114770.0,1.94860987]
[1754359263360,0.5442506,114780.0,114770.0,2.05837778]
[1754359263661,0.5442506,114780.0,114770.0,1.94860987]
[1754359264160,0.5442506,114780.0,114770.0,2.05837905]
[1754359264962,0.5442506,114780.0,114770.0,1.94860987]
[1754359265153,0.5442506,114780.0,114770.0,2.10517508]
[1754359265959,0.5442506,114780.0,114770.0,1.94860987]
[1754359266661,0.2515,114780.0,114770.0,1.94860987]
[1754359266965,0.2515,114780.0,114770.0,2.21935137]
[1754359267862,0.2515,114780.0,114770.0,1.94860987]
[1754359268063,0.2515,114780.0,114770.0,2.15162342]
[1754359268261,0.2505,114780.0,114770.0,2.15162342]
[1754359269768,0.2495,114780.0,114770.0,2.15162342]
[1754359270560,0.2495,114780.0,114770.0,2.42236492]
[1754359271563,0.2495,114780.0,114770.0,2.15162342]
[1754359271869,0.2495,114780.0,114770.0,1.94860987]
[1754359272069,0.2495,114780.0,114770.0,2.21935137]
[1754359272664,0.00956,114800.0,114790.0,0.3727018]
[1754359272969,0.00956,114800.0,114790.0,2.38969513]
[1754359273171,0.00956,114800.0,114790.0,2.44523513]
[1754359274070,0.01056,114800.0,114790.0,2.44523513]
[1754359274869,0.002,114800.0,114790.0,2.44523513]
[1754359275271,0.002,114800.0,114790.0,2.2885248]
[1754359275869,0.002,114800.0,114790.0,2.5533248]
[1754359277666,0.001,114800.0,114790.0,2.8240663]
[1754359277971,0.3794039,114820.0,114810.0,0.2683844]
[1754359278172,0.3794039,114820.0,114810.0,1.87136728]
[1754359278777,0.8794039,114820.0,114810.0,1.87136728]
[1754359279273,0.8814039,114820.0,114810.0,1.87136728]
[1754359280176,0.8814039,114820.0,114810.0,1.7618459]
[1754359280680,0.8824039,114820.0,114810.0,1.7618459]
[1754359282880,0.8824039,114820.0,114810.0,1.87136728]
[1754359283379,0.8824039,114820.0,114810.0,1.7618459]
[1754359283678,0.8824039,114820.0,114810.0,1.87136728]
[1754359284883,0.8824039,114820.0,114810.0,1.7618459]
[1754359285385,0.8388553,114820.0,114810.0,1.7618459]
[1754359286273,0.52862,114820.0,114810.0,2.0325874]
[1754359286878,0.05219,114820.0,114810.0,2.0325874]
[1754359287074,0.003,114820.0,114810.0,2.0325874]
[1754359287280,0.003,114820.0,114810.0,2.3933874]
[1754359287677,0.01256,114820.0,114810.0,2.3933874]
[1754359287879,0.05004,114820.0,114810.0,2.3933874]
[1754359288682,0.01256,114820.0,114810.0,2.39276244]
[1754359288979,0.01256,114820.0,114810.0,1.96142578]
[1754359289180,0.01256,114820.0,114810.0,2.50228382]
[1754359289381,0.05004,114820.0,114810.0,2.50228382]
[1754359289582,0.08313,114820.0,114810.0,2.2318548]
[1754359289882,0.08313,114820.0,114810.0,2.12233342]
[1754359290177,0.003,114820.0,114810.0,2.50228382]
[1754359290577,0.003,114820.0,114810.0,2.39276244]
[1754359290989,0.003,114820.0,114810.0,3.70704382]
[1754359291285,0.003,114820.0,114810.0,3.59752244]
[1754359293283,0.13781787,114840.0,114830.0,0.53862362]
[1754359293586,0.13781787,114840.0,114830.0,1.49630362]
[1754359294381,0.14081787,114840.0,114830.0,1.49630362]
[1754359294585,0.14581787,114840.0,114830.0,1.49630362]
[1754359294991,0.31997737,114840.0,114830.0,1.49630362]
[1754359295192,0.31997737,114840.0,114830.0,1.2258746]
[1754359295486,0.31997737,114840.0,114830.0,1.49630362]
[1754359295888,0.31997737,114840.0,114830.0,1.50507992]
[1754359296586,0.02747787,114840.0,114830.0,1.50507992]
[1754359296786,0.21084757,114840.0,114830.0,1.50507992]
[1754359297085,0.32222757,114840.0,114830.0,1.50507992]
[1754359297287,0.32222757,114840.0,114830.0,1.57471082]
[1754359299289,0.32222757,114840.0,114830.0,1.83951082]
[1754359300695,0.32222757,114840.0,114830.0,1.84143082]
[1754359300998,0.3027497,114840.0,114830.0,1.84143082]
[1754359305004,0.008,114840.0,114830.0,1.84143082]
[1754359305497,0.04109,114840.0,114830.0,1.84143082]
[1754359305705,0.05493,114840.0,114830.0,1.84143082]
[1754359305891,0.04109,114840.0,114830.0,1.84143082]
[1754359306803,0.01721,114840.0,114830.0,1.84143082]
[1754359307303,0.008,114840.0,114830.0,1.84143082]
[1754359308204,0.008,114840.0,114830.0,2.11185984]
[1754359308901,0.008,114840.0,114830.0,2.47265984]
[1754359311793,0.04693,114860.0,114850.0,0.2114045]
[1754359311998,0.2210594,114860.0,114850.0,1.40147352]
[1754359312308,0.2947194,114860.0,114850.0,1.40147352]
[1754359312606,0.79726811,114860.0,114850.0,1.40147352]
[1754359312807,1.06769713,114860.0,114850.0,0.9001]
[1754359313102,1.43049713,114860.0,114850.0,0.2648]
[1754359313293,1.62434534,114860.0,114850.0,0.8478]
[1754359313493,1.62434534,114860.0,114850.0,0.78792]
[1754359314294,1.60441632,114860.0,114850.0,0.78792]
[1754359314502,1.87484534,114860.0,114850.0,0.78792]
[1754359314702,1.60441632,114860.0,114850.0,0.78792]
[1754359314901,1.87484534,114860.0,114850.0,0.78792]
[1754359317005,1.87484534,114860.0,114850.0,0.59812]
[1754359317503,1.60441632,114860.0,114850.0,0.7722642]
[1754359317708,1.70070934,114860.0,114850.0,0.8893742]
[1754359318002,1.43028032,114860.0,114850.0,0.8893742]
[1754359318710,1.42828032,114860.0,114850.0,0.8893742]
[1754359318910,1.69870934,114860.0,114850.0,0.8893742]
[1754359319107,0.2947342,114850.0,114840.0,0.2893372]
[1754359319416,0.2947494,114840.0,114830.0,1.11671477]
[1754359319603,0.29729811,114840.0,114830.0,1.71511477]
[1754359320800,0.29729811,114840.0,114830.0,1.11671477]
[1754359321108,0.29729811,114840.0,114830.0,1.98562379]
[1754359321312,0.29729811,114840.0,114830.0,1.98762379]
[1754359321607,0.29729811,114840.0,114830.0,1.07517147]
[1754359321912,0.29729811,114840.0,114830.0,1.67257147]
[1754359322102,0.29729811,114840.0,114830.0,1.67357147]
[1754359322303,0.29729811,114840.0,114830.0,1.5642199]
[1754359322809,0.29729811,114840.0,114830.0,1.5632199]
[1754359325110,0.58681243,114840.0,114830.0,0.2692072]
[1754359325326,0.58681243,114840.0,114830.0,0.77830247]
[1754359325327,0.94761243,114840.0,114830.0,0.77830247]
[1754359325910,0.94761243,114840.0,114830.0,0.6689509]
[1754359326300,1.44761243,114840.0,114830.0,0.6689509]
[1754359326497,1.17718341,114840.0,114830.0,0.6689509]
[1754359326809,1.17718341,114840.0,114830.0,0.7656609]
[1754359327006,1.44761243,114840.0,114830.0,0.7656609]
[1754359327216,1.44761243,114840.0,114830.0,0.77456392]
[1754359327703,1.69711243,114840.0,114830.0,0.7656609]
[1754359331713,1.42668341,114840.0,114830.0,0.1673409]
[1754359331904,1.42668341,114840.0,114830.0,0.7763709]
[1754359332105,1.69711243,114840.0,114830.0,0.7763709]
[1754359333111,1.69711243,114840.0,114830.0,0.7665009]
[1754359337518,1.69711243,114840.0,114830.0,0.7810409]
[1754359337917,1.42668341,114840.0,114830.0,0.7810409]
[1754359338111,1.69711243,114840.0,114830.0,0.7810409]
[1754359340422,1.69711243,114840.0,114830.0,0.7665009]
[1754359343517,1.42668341,114840.0,114830.0,0.7665009]
[1754359343711,1.69711243,114840.0,114830.0,0.7665009]
[1754359345125,1.42668341,114840.0,114830.0,0.7665009]
[1754359345312,1.69711243,114840.0,114830.0,0.7909109]
[1754359347922,1.42668341,114840.0,114830.0,0.7909109]
[1754359348322,1.69711243,114840.0,114830.0,0.7909109]
[1754359349223,1.69711243,114840.0,114830.0,0.1917509]
[1754359349423,1.69711243,114840.0,114830.0,0.7899909]
[1754359351225,1.42668341,114840.0,114830.0,0.7899909]
[1754359351523,1.69711243,114840.0,114830.0,0.7899909]
[1754359352319,1.69711243,114840.0,114830.0,0.1673409]
[1754359352524,1.69711243,114840.0,114830.0,0.7069809]
[1754359353225,1.69711243,114840.0,114830.0,0.6685909]
[1754359353723,1.96754145,114840.0,114830.0,0.0212401]
[1754359354028,0.2769649,114830.0,114820.0,0.70723157]
[1754359354325,0.92274392,114830.0,114820.0,0.65626]
[1754359354528,0.92274392,114830.0,114820.0,0.69254]
[1754359354827,0.92529263,114830.0,114820.0,0.69254]
[1754359355027,1.42529263,114830.0,114820.0,0.69254]
[1754359355524,1.67679263,114830.0,114820.0,0.69254]
[1754359357927,1.67679263,114830.0,114820.0,0.71603]
[1754359358122,1.67679263,114830.0,114820.0,0.78625257]
[1754359359025,1.40636361,114830.0,114820.0,0.78625257]
[1754359359823,1.40636361,114830.0,114820.0,1.23087159]
[1754359360028,1.28902361,114830.0,114820.0,1.23087159]
[1754359360225,1.35861361,114830.0,114820.0,1.23087159]
[1754359360527,0.96845361,114830.0,114820.0,1.23087159]
[1754359361323,1.00013361,114830.0,114820.0,1.23087159]
[1754359362032,1.00013361,114830.0,114820.0,0.96044257]
[1754359362230,0.95390361,114830.0,114820.0,0.96044257]
[1754359362428,1.04556361,114830.0,114820.0,0.96044257]
[1754359363826,1.67679263,114830.0,114820.0,0.78625257]
[1754359367332,1.67679263,114830.0,114820.0,0.72913257]
[1754359367530,1.67679263,114830.0,114820.0,0.77675257]
[1754359367832,1.67679263,114830.0,114820.0,0.78625257]
[1754359368131,1.40636361,114830.0,114820.0,0.78625257]
[1754359368326,1.67679263,114830.0,114820.0,0.78625257]
[1754359368830,1.67679263,114830.0,114820.0,1.06979424]
[1754359369232,1.67679263,114830.0,114820.0,0.89560414]
[1754359369730,1.40636361,114830.0,114820.0,1.06979424]
[1754359369931,1.67679263,114830.0,114820.0,1.06979424]
[1754359371133,1.40636361,114830.0,114820.0,1.06979424]
[1754359371333,1.67679263,114830.0,114820.0,1.06979424]
[1754359374334,1.40636361,114830.0,114820.0,1.06979424]
[1754359374525,1.67679263,114830.0,114820.0,1.06979424]
[1754359374825,1.31599263,114830.0,114820.0,1.06979424]
[1754359376829,1.04556361,114830.0,114820.0,1.06979424]
[1754359377238,0.99652361,114830.0,114820.0,1.06979424]
[1754359377427,0.92822361,114830.0,114820.0,1.06979424]
[1754359377930,0.95186361,114830.0,114820.0,1.06979424]
[1754359378120,1.00013361,114830.0,114820.0,1.06979424]
[1754359380233,0.96845361,114830.0,114820.0,1.43059424]
[1754359380633,1.00013361,114830.0,114820.0,1.43059424]
[1754359381031,1.02349361,114830.0,114820.0,1.70102326]
[1754359381434,0.92822361,114830.0,114820.0,1.70102326]
[1754359381737,0.92822361,114830.0,114820.0,1.59167169]
[1754359382137,0.75404871,114830.0,114820.0,1.78147169]
[1754359382337,0.25404871,114830.0,114820.0,1.93818202]
[1754359382637,0.42722361,114830.0,114820.0,1.93818202]
[1754359383836,0.25304871,114830.0,114820.0,1.93818202]
[1754359384233,0.25204871,114830.0,114820.0,1.93818202]
[1754359384439,0.42622361,114830.0,114820.0,1.93818202]
[1754359384634,0.25204871,114830.0,114820.0,1.18359169]
[1754359384839,0.25204871,114830.0,114820.0,1.78079169]
[1754359385724,0.01971221,114860.0,114850.0,0.1741445]
[1754359385930,0.26043951,114860.0,114850.0,1.52199352]
[1754359386135,0.35543951,114860.0,114850.0,1.52199352]
[1754359386927,0.35543951,114860.0,114850.0,1.2515645]
[1754359387127,0.35543951,114860.0,114850.0,0.8531945]
[1754359387344,0.35543951,114860.0,114850.0,0.64643]
[1754359387345,0.98666853,114860.0,114850.0,0.64643]
[1754359387638,0.98866853,114860.0,114850.0,0.64643]
[1754359388035,0.2922045,114850.0,114840.0,0.2559971]
[1754359388234,0.56263352,114850.0,114840.0,0.8532371]
[1754359388428,0.56263352,114850.0,114840.0,0.08185]
[1754359388629,0.56263352,114850.0,114840.0,0.7714397]
[1754359388829,0.56263352,114850.0,114840.0,0.59728]
[1754359389129,0.56263352,114850.0,114840.0,0.6697]
[1754359389329,0.56263352,114850.0,114840.0,0.68336]
[1754359389530,0.56263352,114850.0,114840.0,0.69279]
[1754359389724,0.56263352,114850.0,114840.0,0.8669497]
[1754359390236,0.2922045,114850.0,114840.0,0.8908597]
[1754359390426,0.2932045,114850.0,114840.0,0.8908597]
[1754359390624,0.56363352,114850.0,114840.0,0.8908597]
[1754359390828,0.56463352,114850.0,114840.0,0.8908597]
[1754359391137,0.56573352,114850.0,114840.0,0.8907797]
[1754359391630,0.56573352,114850.0,114840.0,1.00041837]
[1754359392132,0.56573352,114850.0,114840.0,0.82625867]
[1754359392334,0.56573352,114850.0,114840.0,0.78864867]
[1754359392534,0.56573352,114850.0,114840.0,0.67901]
[1754359392934,0.56573352,114850.0,114840.0,0.69267]
[1754359394343,0.56463352,114850.0,114840.0,0.69267]
[1754359394740,0.57343352,114850.0,114840.0,0.69267]
[1754359394942,0.57343352,114850.0,114840.0,0.8907393]
[1754359396141,0.93423352,114850.0,114840.0,0.8667493]
[1754359396337,0.57343352,114850.0,114840.0,0.8667493]
[1754359396535,0.57343352,114850.0,114840.0,0.8906593]
[1754359397934,0.93423352,114850.0,114840.0,0.8906593]
[1754359398333,0.57343352,114850.0,114840.0,0.8906593]
[1754359400042,0.93423352,114850.0,114840.0,0.8906593]
[1754359400344,0.93423352,114850.0,114840.0,0.7165]
[1754359400549,0.93423352,114850.0,114840.0,0.8906597]
[1754359401947,0.57343352,114850.0,114840.0,0.8906597]
[1754359403140,0.57343352,114850.0,114840.0,0.7165]
[1754359403340,0.93423352,114850.0,114840.0,0.7165]
[1754359403939,0.93423352,114850.0,114840.0,0.8906597]
[1754359406049,0.93423352,114850.0,114840.0,0.7165]
[1754359406239,0.93423352,114850.0,114840.0,0.8906596]
[1754359406749,0.93423821,114850.0,114840.0,1.16109331]
[1754359407649,0.3030045,114850.0,114840.0,1.16109331]
[1754359407949,0.57343821,114850.0,114840.0,1.16109331]
[1754359409652,0.93423821,114850.0,114840.0,1.16109331]
[1754359409848,0.57343821,114850.0,114840.0,1.16109331]
[1754359410053,0.93423821,114850.0,114840.0,1.16109331]
[1754359410254,0.57343821,114850.0,114840.0,1.27073198]
[1754359411363,0.3030045,114850.0,114840.0,1.27073198]
[1754359411560,0.57343821,114850.0,114840.0,1.27073198]
[1754359411859,0.57343821,114850.0,114840.0,1.16109331]
[1754359412061,0.3030045,114850.0,114840.0,1.16109331]
[1754359412249,0.57343821,114850.0,114840.0,1.16109331]
[1754359412451,0.57343821,114850.0,114840.0,1.43152702]
[1754359413251,0.1849445,114850.0,114840.0,1.43152702]
[1754359414347,0.2086545,114850.0,114840.0,1.43152702]
[1754359414661,0.2086545,114850.0,114840.0,1.16103838]
[1754359414958,0.2076545,114850.0,114840.0,1.16103838]
[1754359415460,0.2066545,114850.0,114840.0,1.16103838]
[1754359416153,0.1829445,114850.0,114840.0,1.16103838]
[1754359417065,0.1829445,114850.0,114840.0,0.8906596]
[1754359417267,0.1829445,114850.0,114840.0,1.16103838]
[1754359420158,0.2066545,114850.0,114840.0,1.16103838]
[1754359423768,0.1829445,114850.0,114840.0,1.16103838]
[1754359424669,0.2066545,114850.0,114840.0,1.16103838]
[1754359430174,0.2778145,114850.0,114840.0,1.16103838]
[1754359430567,0.2778145,114850.0,114840.0,0.8906596]
[1754359430773,0.2995545,114850.0,114840.0,0.8666296]
[1754359431066,0.2995545,114850.0,114840.0,0.63672]
[1754359431067,0.93073328,114850.0,114840.0,0.63672]
[1754359431259,0.93073328,114850.0,114840.0,0.59692]
[1754359432071,0.93073328,114850.0,114840.0,0.65232]
[1754359432072,1.43273328,114850.0,114840.0,0.65232]
[1754359432264,1.43273328,114850.0,114840.0,0.67704]
[1754359432469,1.43173328,114850.0,114840.0,0.8656694]
[1754359432672,1.43373328,114850.0,114840.0,0.8900194]
[1754359433169,1.1633545,114850.0,114840.0,0.8900194]
[1754359433467,1.1633545,114850.0,114840.0,1.16039818]
[1754359433871,1.1643545,114850.0,114840.0,1.16039818]
[1754359434673,1.1633545,114850.0,114840.0,1.16039818]
[1754359434873,1.1613545,114850.0,114840.0,1.16039818]
[1754359435080,1.1623545,114850.0,114840.0,1.16039818]
[1754359435478,0.8015545,114850.0,114840.0,1.16039818]
[1754359435671,0.7551745,114850.0,114840.0,1.16039818]
[1754359436373,0.7551745,114850.0,114840.0,1.27012837]
[1754359436567,0.7334345,114850.0,114840.0,1.27012837]
[1754359436769,0.7334345,114850.0,114840.0,1.16039818]
[1754359438474,0.7334345,114850.0,114840.0,1.35019818]
[1754359438869,0.7551745,114850.0,114840.0,1.0798194]
[1754359439070,0.8015545,114850.0,114840.0,1.35019818]
[1754359439379,0.8015545,114850.0,114840.0,1.0798194]
[1754359440578,0.8015545,114850.0,114840.0,1.35019818]
[1754359446077,0.8015545,114850.0,114840.0,1.0798194]
[1754359446379,0.8015545,114850.0,114840.0,1.35019818]
[1754359447768,0.8015545,114850.0,114840.0,1.0798194]
[1754359448073,0.8015545,114850.0,114840.0,1.35019818]
[1754359448867,0.8015545,114850.0,114840.0,1.0798194]
[1754359449878,0.8015545,114850.0,114840.0,0.4828994]
[1754359450079,0.8015545,114850.0,114840.0,1.0797794]
[1754359450578,0.8015545,114850.0,114840.0,1.35015818]
[1754359452682,0.6849445,114850.0,114840.0,1.35015818]
[1754359452877,0.7088845,114850.0,114840.0,1.35015818]
[1754359453179,0.2088845,114850.0,114840.0,1.35015818]
[1754359453477,0.2708645,114850.0,114840.0,1.0797794]
[1754359453779,0.3020745,114850.0,114840.0,1.35015818]
[1754359457671,0.3020745,114850.0,114840.0,1.18950959]
[1754359457875,0.3020745,114850.0,114840.0,1.45988837]
[1754359458487,0.3020745,114850.0,114840.0,1.35015818]
[1754359460177,0.57245328,114850.0,114840.0,0.83301]
[1754359460384,0.57245328,114850.0,114840.0,0.88056]
[1754359460579,0.3020745,114850.0,114840.0,0.88056]
[1754359460784,0.3020745,114850.0,114840.0,0.90475]
[1754359461685,0.57245328,114850.0,114840.0,0.86567]
[1754359461885,0.57245328,114850.0,114840.0,0.87998]
[1754359462585,0.57245328,114850.0,114840.0,0.90417]
[1754359463788,0.3020745,114850.0,114840.0,0.90417]
[1754359463978,0.57245328,114850.0,114840.0,0.90417]
[1754359465584,0.3020745,114850.0,114840.0,1.0783302]
[1754359466786,0.3020745,114850.0,114840.0,1.34870898]
[1754359467085,0.3020745,114850.0,114840.0,1.17454878]
[1754359470790,0.3020745,114850.0,114840.0,1.28429197]
[1754359471090,0.3020745,114850.0,114840.0,1.17454878]
[1754359471689,0.2078345,114850.0,114840.0,1.17454878]
[1754359472586,0.2176045,114850.0,114840.0,1.17454878]
[1754359472787,0.2800545,114850.0,114840.0,1.17454878]
[1754359474190,0.3014045,114850.0,114840.0,1.34870908]
[1754359477792,0.1849445,114850.0,114840.0,1.34870908]
[1754359477987,0.3014045,114850.0,114840.0,1.34870908]
[1754359478694,0.57180748,114850.0,114840.0,1.61913626]
[1754359479294,0.57180748,114850.0,114840.0,1.17457298]
[1754359479988,0.57180748,114850.0,114840.0,1.34873298]
[1754359480295,0.3014045,114850.0,114840.0,1.34873298]
[1754359480494,0.93260748,114850.0,114840.0,0.28318]
[1754359480792,0.93260748,114850.0,114840.0,0.90373]
[1754359482094,0.93260748,114850.0,114840.0,1.17413298]
[1754359482693,0.93260748,114850.0,114840.0,0.87986]
[1754359482894,0.93260748,114850.0,114840.0,0.90373]
[1754359483288,0.93260748,114850.0,114840.0,1.17413298]
[1754359483695,0.93260748,114850.0,114840.0,1.17503298]
[1754359484285,0.6622045,114850.0,114840.0,1.17503298]
[1754359484488,0.93260748,114850.0,114840.0,1.17503298]
[1754359485384,0.93260748,114850.0,114840.0,1.28479802]
[1754359485590,0.6622045,114850.0,114840.0,1.28479802]
[1754359485898,0.93260748,114850.0,114840.0,1.09499802]
[1754359486297,0.57180748,114850.0,114840.0,1.09499802]
[1754359486897,0.1849445,114850.0,114840.0,1.5395611]
[1754359488699,0.1849445,114850.0,114840.0,1.2691164]
[1754359491598,0.1849445,114850.0,114840.0,1.4589164]
[1754359493000,0.1849445,114850.0,114840.0,1.34915136]
[1754359495399,0.1849445,114850.0,114840.0,1.4589164]
[1754359496109,0.1849445,114850.0,114840.0,1.72927766]
[1754359497007,0.1829445,114850.0,114840.0,1.4589164]
[1754359497204,0.1829445,114850.0,114840.0,1.4599164]